fUST/lending_fUST_20250319
["ID","MTS","AMOUNT","RATE_DAILY","PERIOD"]
[356387373,1742369444205,-5791.18946912,0.000219,3]
[356387374,1742369444215,-10000.0,0.00021918,30]
[356387375,1742369444224,-833.92477148,0.00021918,30]
[356387376,1742369444233,-500.0,0.00021973,2]
[356387377,1742369444243,-500.0,0.00021973,2]
[356387378,1742369444252,-500.0,0.00021973,2]
[356387379,1742369444261,-500.0,0.00021973,2]
[356387380,1742369444270,-500.0,0.00021973,2]
[356387381,1742369444279,-500.0,0.00021973,2]
[356387382,1742369444289,-343.66733705,0.00021973,2]
[356387383,1742369444299,-597.1472619,0.00021973,2]
[356387384,1742369444308,-500.0,0.00021973,2]
[356387385,1742369444317,-500.0,0.00021973,2]
[356387386,1742369444327,-500.0,0.00021973,2]
[356387387,1742369444336,-500.0,0.00021973,2]
[356387388,1742369444346,-346.73407528,0.00022,2]
[356387389,1742369444355,-25631.51291688,0.00022,2]
[356387390,1742369444365,-1000.0,0.00022,2]
[356387391,1742369444375,-3259.17117872,0.00022026,2]
[356387392,1742369444385,-189.01094098,0.00022078,2]
[356387393,1742369444396,-289.74264972,0.000221,2]
[356387394,1742369444407,-833.92477148,0.00022624,3]
[356387395,1742369444417,-160.0,0.00022728,3]
[356387396,1742369444428,-2224.16,0.000228,7]
[356387397,1742369444438,-5791.18946912,0.000229,3]
[356387398,1742369444448,-245.51951297,0.00023,2]
[356387399,1742369444458,-189.01094098,0.00023439,2]
[356387400,1742369444470,-500.0,0.00023486,120]
[356387401,1742369444480,-1000.0,0.00023652,2]
[356387402,1742369444490,-1000.0,0.00023652,2]
[356387403,1742369444501,-1000.0,0.00023652,2]
[356387404,1742369444511,-1000.0,0.00023652,2]
[356387405,1742369444521,-1000.0,0.00023652,2]
[356387406,1742369444530,-1000.0,0.00023652,2]
[356387407,1742369444544,-1000.0,0.00023652,2]
[356387408,1742369444553,-336.88856362,0.000237,2]
[356387409,1742369444563,-500.0,0.000237,2]
[356387410,1742369444572,-500.0,0.000237,2]
[356387411,1742369444582,-150.0,0.000237,2]
[356387412,1742369444592,-806.97603191,0.00023772,2]
[356387413,1742369444601,-5791.18946912,0.000239,3]
[356387414,1742369444611,-1666.46900196,0.00024,2]
[356387415,1742369444621,-151.0,0.00024,14]
[356387416,1742369444631,-806.97603191,0.0002403,2]
[356387417,1742369444640,-164.8844338,0.00024152,2]
[356387418,1742369444650,-806.97603191,0.00024171,2]
[356387419,1742369444660,-250.0,0.00024248,2]
[356387420,1742369444669,-1000.0,0.00024311,2]
[356387421,1742369444679,-1000.0,0.00024311,2]
[356387422,1742369444688,-1000.0,0.00024311,2]
[356387423,1742369444697,-1000.0,0.00024311,2]
[356387424,1742369444707,-756.36711969,0.000245,10]
[356387425,1742369444717,-806.97603192,0.00024589,2]
[356387426,1742369444727,-225.14923289,0.00024658,2]
[356387427,1742369444737,-280.0,0.00024658,2]
[356387428,1742369444746,-350.0,0.00024796,2]
[356387429,1742369444756,-217.44,0.000248,2]
[356387430,1742369444767,-150.0,0.000248,5]
[356387431,1742369444777,-189.01094098,0.000248,2]
[356387432,1742369444786,-500.0,0.00024872,120]
[356387433,1742369444795,-500.0,0.00024873,2]
[356387434,1742369444805,-214.953117,0.0002489,7]
[356387435,1742369444815,-214.953117,0.0002489,7]
[356387436,1742369444824,-1899.917941,0.0002489,2]
[356387437,1742369444834,-1899.917941,0.0002489,2]
[356387438,1742369444843,-336.279125,0.0002489,7]
[356387439,1742369444853,-336.279125,0.0002489,7]
[356387440,1742369444863,-500.0,0.00024899,120]
[356387441,1742369444873,-500.0,0.00024899,120]
[356387442,1742369444883,-500.0,0.00024899,120]
[356387443,1742369444893,-500.0,0.00024899,120]
[356387444,1742369444903,-500.0,0.00024899,120]
[356387445,1742369444913,-419.91,0.00024899,120]
[356387446,1742369444923,-48999.999999,0.000249,2]
[356387447,1742369444933,-281.98221597,0.000249,2]
[356387448,1742369444942,-214.953117,0.000249,7]
[356387449,1742369444952,-214.953117,0.000249,7]
[356387450,1742369444961,-346081.03929719,0.000249,2]
[356387456,1742369446965,-5388.97838128,0.000249,2]
[356387457,1742369447075,-895.97371651,0.000249,2]
[356387458,1742369447202,-753.5,0.000249,2]
[356387460,1742369891758,-150.0,0.00010849,2]
[356387461,1742369891787,-171.825536,0.00010959,2]
[356387462,1742369891814,-833.92477148,0.00017862,2]
[356387463,1742369891842,-1215.71966434,0.00017863,2]
[356387464,1742369891869,-160.0,0.00017883,2]
[356387465,1742369891897,-300.0,0.00017963,2]
[356387466,1742369891924,-541.0,0.00017964,2]
[356387467,1742369891951,-2267.0,0.00017964,2]
[356387468,1742369891974,-150.0,0.00017964,2]
[356387469,1742369891986,-171.825536,0.00017964,2]
[356387470,1742369892002,-833.92477148,0.00017964,2]
[356387471,1742369892015,-757.24969252,0.00017964,2]
[356387472,1742369892025,-399.0,0.00017964,2]
[356387473,1742369892034,-59.46997182,0.00018063,2]
[356387474,1742369892045,-160.0,0.00018063,2]
[356387475,1742369892061,-198.42093885,0.00018063,2]
[356387476,1742369892071,-101.57906115,0.00018169,2]
[356387477,1742369892087,-541.0,0.00018169,2]
[356387478,1742369892098,-2267.0,0.00018169,2]
[356387479,1742369892110,-680.18778396,0.00018169,2]
[356387480,1742369892119,-78.8722724,0.00018169,2]
[356387505,1742370631960,-1505.01560162,0.00017435,2]
[356387507,1742370631970,-2444.37838404,0.00017739,2]
[356387509,1742370631979,-600.0,0.00017779,2]
[356387511,1742370631989,-300.0,0.00017788,2]
[356387513,1742370631999,-500.0,0.00017789,2]
[356387515,1742370632008,-500.0,0.00017789,2]
[356387517,1742370632018,-500.0,0.00017789,2]
[356387520,1742370632031,-500.0,0.00017789,2]
[356387522,1742370632041,-500.41157505,0.00017789,2]
[356387523,1742370632050,-500.0,0.00017789,2]
[356387526,1742370632060,-500.0,0.00017789,2]
[356387527,1742370632069,-500.0,0.00017789,2]
[356387530,1742370632079,-5621.87928736,0.0001779,2]
[356387774,1742370638217,-19278.12071264,0.0001779,2]
[356387775,1742370638227,-160.0,0.00017802,2]
[356387776,1742370638237,-417.89091067,0.0001782,2]
[356387777,1742370638247,-833.92477148,0.0001782,2]
[356387778,1742370638256,-622.2,0.00017834,2]
[356387779,1742370638265,-645.2214,0.00017889,2]
[356387780,1742370638274,-669.0945918,0.00017944,2]
[356387781,1742370638283,-182.307,0.00017964,2]
[356387782,1742370638293,-15255.9516708,0.0001798,2]
[356387783,1742370638303,-693.8510917,0.00017999,2]
[356387784,1742370638312,-181.62851,0.00018008,2]
[356387785,1742370638322,-1162.34899256,0.00018054,2]
[356387786,1742370638331,-2777.2629911,0.00018124,2]
[356387787,1742370638340,-500.0,0.0001817,2]
[356387788,1742370638350,-500.0,0.0001817,2]
[356387789,1742370638360,-500.0,0.0001817,2]
[356387790,1742370638370,-500.0,0.0001817,2]
[356387791,1742370638379,-500.0,0.0001817,2]
[356387792,1742370638389,-500.0,0.0001817,2]
[356387793,1742370638399,-500.0,0.0001817,2]
[356387794,1742370638409,-500.0,0.0001817,2]
[356387795,1742370638418,-500.0,0.0001817,2]
[356387796,1742370638428,-500.0,0.0001817,2]
[356387797,1742370638437,-500.0,0.0001817,2]
[356387798,1742370638447,-500.0,0.0001817,2]
[356387799,1742370638456,-500.0,0.0001817,2]
[356387800,1742370638465,-500.0,0.0001817,2]
[356387801,1742370638475,-500.0,0.0001817,2]
[356387802,1742370638486,-500.0,0.0001817,2]
[356387803,1742370638496,-500.0,0.0001817,2]
[356387804,1742370638506,-500.0,0.0001817,2]
[356387805,1742370638516,-500.0,0.0001817,2]
[356387806,1742370638525,-600.0,0.0001817,2]
[356387807,1742370638535,-159.61,0.000186,2]
[356387808,1742370638545,-500.0,0.00018841,2]
[356387809,1742370638555,-255.76951257,0.00018862,2]
[356387810,1742370638565,-500.0,0.00018863,2]
[356387811,1742370638575,-3000.0,0.00018865,2]
[356387812,1742370638585,-4246.87227749,0.000189,2]
[356387813,1742370638595,-181.62851,0.00018909,2]
[356387814,1742370638604,-309.91250893,0.00019373,2]
[356387815,1742370638614,-1152.57266829,0.00019373,2]
[356387816,1742370638624,-420.0,0.00019413,2]
[356387817,1742370638634,-196.08690704,0.00019418,2]
[356387818,1742370638643,-222000.0,0.0001943,2]
[356387819,1742370638653,-213.01281675,0.00019473,2]
[356387820,1742370638662,-303.08224536,0.00019473,2]
[356387821,1742370638672,-575.35939224,0.00019473,2]
[356387822,1742370638682,-500.0,0.00019473,2]
[356387823,1742370638692,-500.0,0.00019473,2]
[356387824,1742370638701,-500.0,0.00019473,2]
[356387825,1742370638711,-500.0,0.00019473,2]
[356387826,1742370638721,-500.0,0.00019473,2]
[356387827,1742370638731,-392.40020983,0.00019473,2]
[356387828,1742370638739,-500.0,0.00019473,2]
[356387829,1742370638749,-500.0,0.00019473,2]
[356387830,1742370638762,-500.0,0.00019473,2]
[356387831,1742370638773,-160.03716576,0.00019473,2]
[356387832,1742370638782,-500.0,0.00019473,2]
[356387833,1742370638792,-155.9611258,0.00019473,2]
[356387834,1742370638802,-500.0,0.00019473,2]
[356387835,1742370638812,-500.0,0.00019473,2]
[356387836,1742370638821,-500.0,0.00019473,2]
[356387837,1742370638831,-500.0,0.00019473,2]
[356387838,1742370638842,-500.0,0.00019473,2]
[356387839,1742370638852,-500.0,0.00019473,2]
[356387840,1742370638862,-405.07508102,0.00019473,2]
[356387841,1742370638871,-500.0,0.00019473,2]
[356387842,1742370638881,-1000.0,0.00019529,5]
[356387843,1742370638891,-1000.0,0.00019529,5]
[356387844,1742370638901,-1000.0,0.00019529,5]
[356387845,1742370638911,-4246.87227735,0.00019831,2]
[356387846,1742370638921,-307.0,0.0002,120]
[356387847,1742370638931,-151.18254991,0.0002,2]
[356387848,1742370638940,-500.0,0.0002,120]
[356387849,1742370638951,-309.9125089,0.00020743,2]
[356387850,1742370638961,-4246.87227735,0.00020762,2]
[356387851,1742370638971,-587.0,0.00021186,2]
[356387852,1742370638981,-158.506,0.0002134,2]
[356387853,1742370638991,-4246.87227735,0.00021693,3]
[356387854,1742370639001,-2444.37838404,0.00021755,2]
[356387855,1742370639011,-2001.75,0.00022,7]
[356387856,1742370639020,-500.0,0.00022,120]
[356387857,1742370639031,-309.9125089,0.00022113,2]
[356387858,1742370639041,-500.0,0.00022567,2]
[356387859,1742370639051,-500.0,0.000226,2]
[356387860,1742370639060,-4246.87227735,0.00022624,3]
[356387861,1742370639070,-500.0,0.0002295,2]
[356387862,1742370639080,-500.0,0.0002295,2]
[356387863,1742370639090,-501.19967437,0.00023,2]
[356387864,1742370639100,-500.0,0.00023,2]
[356387865,1742370639109,-500.0,0.0002302,2]
[356387866,1742370639119,-823.0,0.00023121,2]
[356387867,1742370639129,-500.0,0.0002314,2]
[356387868,1742370639139,-500.0,0.000232,2]
[356387869,1742370639149,-500.0,0.000232,2]
[356387870,1742370639158,-500.0,0.000232,2]
[356387871,1742370639169,-500.0,0.000232,2]
[356387872,1742370639179,-500.0,0.000232,2]
[356387873,1742370639189,-500.0,0.000232,2]
[356387874,1742370639199,-165.27012964,0.000232,2]
[356387875,1742370639209,-500.0,0.000232,2]
[356387876,1742370639219,-500.0,0.00023225,2]
[356387877,1742370639228,-500.0,0.00023225,2]
[356387878,1742370639238,-500.0,0.00023225,2]
[356387879,1742370639248,-504.52312194,0.00023225,2]
[356387880,1742370639257,-594.36720335,0.00023225,2]
[356387881,1742370639267,-500.0,0.00023225,2]
[356387882,1742370639276,-500.0,0.00023225,2]
[356387883,1742370639287,-500.0,0.00023225,2]
[356387884,1742370639296,-500.0,0.00023225,2]
[356387885,1742370639307,-500.0,0.00023225,2]
[356387886,1742370639317,-500.0,0.00023225,2]
[356387887,1742370639327,-500.0,0.00023225,2]
[356387888,1742370639337,-309.9125089,0.00023482,2]
[356387889,1742370639348,-160.0,0.00023486,3]
[356387890,1742370639358,-160.0,0.00023486,3]
[356387891,1742370639368,-417.89091067,0.00023486,3]
[356387892,1742370639377,-4246.87227735,0.00023555,3]
[356387893,1742370639387,-500.0,0.00024,120]
[356387894,1742370639396,-164.8844338,0.00024152,2]
[356387895,1742370639406,-4246.87227735,0.00024486,3]
[356387896,1742370639416,-972.0178614,0.00024658,4]
[356387897,1742370639426,-429.53165353,0.00024658,2]
[356387898,1742370639435,-309.9125089,0.00024852,2]
[356387899,1742370639444,-206.84569796,0.00024899,2]
[356387900,1742370639455,-262.34954387,0.000249,2]
[356387901,1742370639466,-500.0,0.000249,2]
[356387902,1742370639476,-79812.1203646,0.000249,2]
[356387904,1742370639489,-1004.59225006,0.000249,2]
[356387918,1742370640317,-355.96774411,0.000249,2]
[356388016,1742371840164,-172.100027,0.00010959,2]
[356388017,1742371840174,-363.0,0.00015,5]
[356388018,1742371840185,-417.89091067,0.00018525,2]
[356388019,1742371840195,-833.92477148,0.00018525,2]
[356388020,1742371840205,-171.7482315,0.00018555,2]
[356388021,1742371840215,-160.0,0.00018994,2]
[356388022,1742371840226,-2081.99812616,0.0001933,2]
[356388041,1742371843103,-918.00187384,0.0001933,2]
[356388042,1742371843113,-444.49017501,0.00019736,2]
[356388043,1742371843123,-300.0,0.00019736,2]
[356388044,1742371843133,-3348.99073905,0.00019737,2]
[356388064,1742371846159,-588.00235,0.00019737,2]
[356388069,1742372810130,-172.100027,0.00010959,2]
[356388070,1742372810150,-5.00633503,0.00019247,3]
[356388235,1742373038162,-606.24873594,0.000178,3]
[356388236,1742373038172,-3787.44435468,0.000179,2]
[356388237,1742373038182,-150.0,0.00018702,2]
[356388238,1742373038191,-541.0,0.00018702,2]
[356388239,1742373038201,-300.0,0.00019347,2]
[356388240,1742373038211,-24900.0,0.00019348,2]
[356388241,1742373038220,-160.0,0.00019381,2]
[356388242,1742373038230,-417.89091067,0.00019381,2]
[356388243,1742373038240,-833.92477148,0.00019402,2]
[356388244,1742373038250,-151.0,0.00019725,2]
[356388245,1742373038259,-300.000001,0.00019878,2]
[356388246,1742373038269,-3255.93541278,0.000199,2]
[356388247,1742373038279,-500.0,0.00019973,2]
[356388248,1742373038288,-500.0,0.00019973,2]
[356388249,1742373038298,-500.0,0.00019973,2]
[356388250,1742373038308,-500.0,0.00019973,2]
[356388251,1742373038319,-500.0,0.00019973,2]
[356388252,1742373038329,-500.0,0.00019973,2]
[356388253,1742373038338,-500.0,0.00019973,2]
[356388254,1742373038348,-500.0,0.00019999,2]
[356388255,1742373038358,-197.32391998,0.00019999,2]
[356388256,1742373038368,-500.0,0.00019999,2]
[356388257,1742373038377,-370.80216762,0.00019999,2]
[356388258,1742373038387,-550.0,0.0002,15]
[356388259,1742373038397,-189.44622686,0.0002,2]
[356388260,1742373038407,-36646.85260314,0.0002,20]
[356388261,1742373038416,-3255.93541263,0.00020797,2]
[356388262,1742373038426,-500.000001,0.00020972,2]
[356388263,1742373038436,-3000.0,0.00021,2]
[356388264,1742373038446,-159.61,0.00021,2]
[356388265,1742373038456,-3000.0,0.0002101,2]
[356388266,1742373038465,-200.0,0.0002101,2]
[356388267,1742373038474,-3000.0,0.0002102,2]
[356388268,1742373038484,-1584.16430826,0.0002103,2]
[356388269,1742373038497,-1415.83569174,0.0002103,2]
[356388270,1742373038509,-3000.0,0.0002104,2]
[356388271,1742373038532,-3000.0,0.0002105,2]
[356388272,1742373038543,-3000.0,0.0002106,2]
[356388273,1742373038555,-3000.0,0.0002107,2]
[356388274,1742373038566,-500.0,0.00021073,2]
[356388275,1742373038576,-500.0,0.00021073,2]
[356388276,1742373038588,-500.0,0.00021073,2]
[356388277,1742373038598,-336.77966732,0.00021073,2]
[356388278,1742373038609,-500.0,0.00021073,2]
[356388279,1742373038620,-505.80137362,0.00021073,2]
[356388280,1742373038631,-500.0,0.00021073,2]
[356388281,1742373038641,-500.0,0.00021073,2]
[356388282,1742373038651,-500.0,0.00021073,2]
[356388283,1742373038661,-500.0,0.00021073,2]
[356388284,1742373038671,-500.0,0.00021073,2]
[356388285,1742373038681,-500.0,0.00021073,2]
[356388286,1742373038691,-500.0,0.00021073,2]
[356388287,1742373038702,-500.0,0.00021073,2]
[356388288,1742373038712,-500.0,0.00021073,2]
[356388289,1742373038722,-500.0,0.00021073,2]
[356388290,1742373038732,-500.0,0.00021073,2]
[356388291,1742373038742,-445.93513098,0.00021073,2]
[356388292,1742373038753,-500.0,0.00021073,2]
[356388293,1742373038763,-500.0,0.00021073,2]
[356388294,1742373038773,-500.0,0.00021073,2]
[356388295,1742373038783,-500.0,0.00021073,2]
[356388296,1742373038794,-3000.0,0.0002108,2]
[356388297,1742373038804,-420.0,0.00021081,2]
[356388298,1742373038815,-3000.0,0.0002109,2]
[356388299,1742373038824,-3000.0,0.000211,2]
[356388300,1742373038834,-3000.0,0.0002111,2]
[356388301,1742373038845,-5011.520487,0.0002112,2]
[356388302,1742373038854,-3255.93541263,0.00021693,3]
[356388303,1742373038864,-703.12578185,0.00021818,2]
[356388304,1742373038878,-2296.87421815,0.00021818,2]
[356388305,1742373038888,-158.507,0.00021917,2]
[356388306,1742373038898,-2360.79643471,0.00021918,60]
[356388307,1742373040417,-7639.20356529,0.00021918,60]
[356388308,1742373040427,-10000.0,0.00021918,30]
[356388309,1742373040438,-833.92477148,0.00021918,30]
[356388310,1742373040448,-1801.57,0.00022,7]
[356388311,1742373040457,-158.0,0.00022,2]
[356388312,1742373040467,-191.0,0.00022,2]
[356388313,1742373040477,-191.0,0.00022192,2]
[356388314,1742373040486,-3255.93541263,0.0002259,3]
[356388315,1742373040495,-150.0,0.0002297,2]
[356388316,1742373040508,-158.0,0.00023014,2]
[356388317,1742373040518,-191.0,0.00023014,2]
[356388318,1742373040528,-160.0,0.00023486,3]
[356388319,1742373040538,-3255.93541263,0.00023486,3]
[356388321,1742373040551,-721.0,0.000243,2]
[356388322,1742373040561,-833.92477148,0.00024348,3]
[356388323,1742373040571,-3255.93541263,0.00024383,3]
[356388324,1742373040582,-19088.88164014,0.000245,6]
[356388325,1742373040593,-10000.0,0.000245,7]
[356388326,1742373040603,-10000.0,0.000245,8]
[356388327,1742373040612,-20000.0,0.000245,5]
[356388328,1742373040623,-20000.0,0.000245,4]
[356388329,1742373040634,-201.46372038,0.00024673,2]
[356388330,1742373040645,-500.0,0.00024673,2]
[356388331,1742373040656,-500.0,0.00024673,2]
[356388332,1742373040666,-500.0,0.00024673,2]
[356388333,1742373040677,-150.0,0.00024673,2]
[356388334,1742373040687,-49205.4535181,0.000247,2]
[356388420,1742374232384,-498.96739094,0.00010528,2]
[356388421,1742374232394,-175.6684148,0.00010959,2]
[356388423,1742374232403,-214.08328978,0.00018246,2]
[356388425,1742374232413,-160.0,0.00018319,2]
[356388426,1742374232423,-156.587,0.00018336,2]
[356388427,1742374232434,-631.08230919,0.00018336,2]
[356388428,1742374232443,-300.0,0.00018345,2]
[356388429,1742374232452,-833.33,0.00018346,2]
[356388430,1742374232462,-833.33,0.00018346,2]
[356388431,1742374232471,-243.59049964,0.00018346,2]
[356388432,1742374232483,-589.73950036,0.00018346,2]
[356388433,1742374232492,-833.33,0.00018346,2]
[356388434,1742374232501,-833.33,0.00018346,2]
[356388435,1742374232510,-833.33,0.00018346,2]
[356388436,1742374232520,-833.33,0.00018346,2]
[356388437,1742374232534,-833.33,0.00018346,2]
[356388438,1742374232547,-833.33,0.00018346,2]
[356388439,1742374232557,-833.33,0.00018346,2]
[356388440,1742374232567,-833.33,0.00018346,2]
[356388441,1742374232576,-833.33,0.00018346,2]
[356388442,1742374232585,-833.33,0.00018346,2]
[356388443,1742374232595,-833.33,0.00018346,2]
[356388444,1742374232605,-833.33,0.00018346,2]
[356388445,1742374232614,-833.33,0.00018346,2]
[356388446,1742374232624,-833.33,0.00018346,2]
[356388447,1742374232633,-833.33,0.00018346,2]
[356388448,1742374232642,-833.33,0.00018346,2]
[356388449,1742374232652,-833.33,0.00018346,2]
[356388450,1742374232661,-833.33,0.00018346,2]
[356388452,1742374232671,-833.33,0.00018346,2]
[356388454,1742374232681,-833.33,0.00018346,2]
[356388456,1742374232691,-833.41,0.00018346,2]
[356388458,1742374232700,-1000.0,0.00018346,7]
[356388460,1742374232709,-12391.90774955,0.00018346,2]
[356388470,1742374238166,-24900.0,0.00018347,2]
[356388471,1742374238176,-500.0,0.00018373,2]
[356388472,1742374238186,-338.62636598,0.00018373,2]
[356388473,1742374238196,-500.0,0.00018373,2]
[356388474,1742374238207,-500.0,0.00018373,2]
[356388475,1742374238217,-253.64450369,0.00018373,2]
[356388476,1742374238228,-500.99651656,0.00018373,2]
[356388477,1742374238239,-500.0,0.00018373,2]
[356388478,1742374238248,-500.0,0.00018373,2]
[356388479,1742374238258,-184.61628961,0.00018373,2]
[356388480,1742374238268,-644.37123205,0.00018373,2]
[356388481,1742374238278,-500.0,0.00018373,2]
[356388482,1742374238287,-500.51185289,0.00018373,2]
[356388483,1742374238297,-161.00768788,0.00018373,2]
[356388484,1742374238307,-502.34721961,0.00018373,2]
[356388485,1742374238316,-500.0,0.00018373,2]
[356388487,1742374238326,-500.0,0.00018373,2]
[356388488,1742374238527,-500.0,0.00018373,2]
[356388489,1742374238540,-500.0,0.00018373,2]
[356388490,1742374238550,-500.0,0.00018619,2]
[356388491,1742374238559,-614.1099732,0.00018619,2]
[356388492,1742374238569,-1000.0,0.0001862,7]
[356388493,1742374238579,-1000.0,0.00018894,7]
[356388494,1742374238590,-2604.74833022,0.000189,2]
[356388495,1742374238599,-499.9999989,0.0001899,2]
[356388496,1742374238608,-1000.0,0.00019168,7]
[356388497,1742374238618,-500.0,0.00019346,120]
[356388498,1742374238628,-610.85255488,0.00019346,2]
[356388499,1742374238638,-159.61,0.00019346,2]
[356388500,1742374238647,-500.0,0.00019347,120]
[356388501,1742374238657,-300.0,0.00019347,2]
[356388502,1742374238668,-500.0,0.00019373,2]
[356388503,1742374238677,-1000.0,0.00019442,7]
[356388504,1742374238688,-833.92477148,0.00019618,2]
[356388505,1742374238699,-160.0,0.00019618,2]
[356388506,1742374238709,-300.0,0.00019621,2]
[356388507,1742374238720,-417.89091067,0.00019639,2]
[356388508,1742374238730,-1000.0,0.00019716,7]
[356388509,1742374238740,-2604.7483301,0.00019866,2]
[356388510,1742374238749,-150.0,0.00019872,2]
[356388511,1742374238760,-270.0,0.00019872,2]
[356388512,1742374238770,-399.0,0.00019872,2]
[356388513,1742374238780,-500.0,0.00019889,2]
[356388514,1742374238789,-300.0,0.00019895,2]
[356388515,1742374238799,-1000.0,0.0001999,7]
[356388516,1742374238809,-500.0,0.00019998,120]
[356388517,1742374238819,-500.0,0.00019999,120]
[356388518,1742374238829,-500.0,0.00019999,120]
[356388519,1742374238839,-250.0,0.0002,120]
[356388520,1742374238848,-300.0,0.00020169,2]
[356388521,1742374238859,-500.0,0.00020183,2]
[356388522,1742374238873,-1000.0,0.00020264,7]
[356388523,1742374238883,-300.0,0.00020443,2]
[356388524,1742374238892,-555.51168725,0.00020477,2]
[356388525,1742374238902,-500.0,0.00020477,2]
[356388526,1742374238913,-500.0,0.00020477,2]
[356388527,1742374238923,-1000.0,0.00020538,7]
[356388528,1742374238933,-300.0,0.00020717,2]
[356388529,1742374238945,-833.92477148,0.00020812,7]
[356388530,1742374238955,-1000.0,0.00020812,7]
[356388531,1742374238967,-2604.7483301,0.00020831,2]
[356388532,1742374238977,-3000.0,0.0002096,2]
[356388533,1742374238987,-300.0,0.00020991,2]
[356388534,1742374238998,-500.0,0.00020999,120]
[356388535,1742374239010,-500.0,0.00021059,120]
[356388536,1742374239020,-586.28,0.00021086,7]
[356388537,1742374239031,-500.0,0.00021088,120]
[356388538,1742374239041,-500.0,0.00021089,120]
[356388539,1742374239050,-300.0,0.00021265,2]
[356388540,1742374239060,-500.0,0.000214,2]
[356388541,1742374239070,-500.0,0.000214,2]
[356388542,1742374239080,-500.0,0.000214,2]
[356388543,1742374239091,-500.0,0.000214,2]
[356388544,1742374239101,-499.47212908,0.000214,2]
[356388545,1742374239112,-472.98695086,0.000214,2]
[356388546,1742374239124,-500.0,0.000214,2]
[356388547,1742374239135,-500.0,0.000214,2]
[356388548,1742374239146,-500.0,0.000214,2]
[356388549,1742374239156,-479.14337591,0.000214,2]
[356388550,1742374239167,-500.0,0.000214,2]
[356388551,1742374239177,-300.0,0.00021539,2]
[356388552,1742374239190,-2604.7483301,0.00021797,3]
[356388553,1742374239200,-300.0,0.00021813,2]
[356388554,1742374239210,-500.0,0.00021817,120]
[356388555,1742374239220,-500.0,0.00021917,120]
[356388556,1742374239229,-500.0,0.00021973,2]
[356388557,1742374239239,-500.0,0.00021973,2]
[356388558,1742374239249,-500.0,0.00021973,2]
[356388559,1742374239259,-500.0,0.00021973,2]
[356388560,1742374239269,-500.0,0.00021973,2]
[356388561,1742374239278,-500.0,0.00021973,2]
[356388562,1742374239288,-500.0,0.00021973,2]
[356388563,1742374239298,-539.24969065,0.00021973,2]
[356388564,1742374239309,-250.0,0.00022,120]
[356388565,1742374239319,-212930.96812,0.00022,4]
[356388566,1742374239329,-1621.41,0.00022,7]
[356388567,1742374239339,-158.5075669,0.00022078,2]
[356388568,1742374239349,-300.0,0.00022087,2]
[356388569,1742374239359,-613.60997402,0.00022145,2]
[356388570,1742374239369,-1179.773457,0.000223,2]
[356388571,1742374239378,-300.0,0.00022361,2]
[356388572,1742374239389,-300.0,0.00022635,2]
[356388573,1742374239399,-2604.7483301,0.00022762,3]
[356388574,1742374239410,-1000.0,0.000228,2]
[356388575,1742374239420,-300.0,0.00022909,2]
[356388576,1742374239430,-504.1,0.00023,5]
[356388577,1742374239442,-300.0,0.00023183,2]